fUST/lending_fUST_20250427
["ID","MTS","AMOUNT","RATE_DAILY","PERIOD"]
[359140171,1745733045315,-400.0,0.0001726,2]
[359140172,1745733045325,-775.53,0.0001726,2]
[359140174,1745733045335,-400.0,0.0001726,2]
[359140176,1745733045347,-400.0,0.0001726,2]
[359140178,1745733045357,-211.94558683,0.0001726,2]
[359140180,1745733045367,-400.0,0.0001726,2]
[359140182,1745733045376,-2122.99,0.0001726,2]
[359140184,1745733045386,-200.0,0.0001726,2]
[359140186,1745733045397,-1776.77,0.0001726,2]
[359140187,1745733045407,-400.0,0.0001726,2]
[359140188,1745733045417,-200.0,0.0001726,2]
[359140189,1745733045428,-200.0,0.0001726,2]
[359140190,1745733045441,-400.0,0.0001726,2]
[359140191,1745733045451,-151.0,0.0001726,2]
[359140192,1745733045460,-200.0,0.0001726,2]
[359140194,1745733045470,-151.0,0.0001726,2]
[359140196,1745733045479,-200.0,0.0001726,2]
[359140197,1745733045489,-2138.92,0.0001726,2]
[359140199,1745733045499,-151.0,0.0001726,2]
[359140202,1745733045509,-400.0,0.0001726,2]
[359140203,1745733045518,-2004.93,0.0001726,2]
[359140206,1745733045529,-2504.51,0.0001726,2]
[359140208,1745733045539,-200.0,0.0001726,2]
[359140210,1745733045548,-1998.5,0.0001726,2]
[359140212,1745733045558,-400.0,0.0001726,2]
[359140213,1745733045567,-400.0,0.0001726,2]
[359140216,1745733045576,-400.0,0.0001726,2]
[359140218,1745733045586,-200.0,0.0001726,2]
[359140220,1745733045596,-200.0,0.0001726,2]
[359140222,1745733045605,-181.254798,0.0001726,2]
[359140224,1745733045614,-200.0,0.0001726,2]
[359140226,1745733045624,-500.87,0.0001726,2]
[359140228,1745733045634,-1518.43130627,0.0001726,2]
[359140241,1745733045757,-0.00212727,0.0001726,2]
[359140243,1745733045770,-360.77973849,0.0001726,2]
[359140250,1745733045827,-399.21682797,0.0001726,2]
[359140252,1745733045836,-181.254798,0.0001726,2]
[359140254,1745733045846,-318.48410436,0.0001726,2]
[359140256,1745733045855,-1611.78,0.0001726,2]
[359140258,1745733045865,-400.0,0.0001726,2]
[359140260,1745733045875,-1119.47,0.0001726,2]
[359140262,1745733045886,-1071.77,0.0001726,2]
[359140264,1745733045895,-363.52516512,0.0001726,2]
[359140266,1745733045908,-1241.56483488,0.0001726,2]
[359140268,1745733045918,-3766.76,0.0001726,2]
[359140270,1745733045928,-163.62738592,0.0001726,2]
[359140287,1745733046084,-432.56,0.0001726,2]
[359140336,1745733093950,-280.22034229,0.00013227,2]
[359140337,1745733098163,-106.1120314,0.00013227,2]
[359140338,1745733098188,-173.8879686,0.00013227,2]
[359140339,1745733101960,-280.77933626,0.00013227,2]
[359140340,1745733107182,-45.33269514,0.00013227,2]
[359140341,1745733107208,-264.25894737,0.00013227,2]
[359140342,1745733110404,-235.74105263,0.00013227,2]
[359140343,1745733110431,-17.54986479,0.00013227,2]
[359140344,1745733115318,-243.92601633,0.00013227,2]
[359140346,1745733121874,-163.46960795,0.00013227,2]
[359140347,1745733126533,-75.05451093,0.00013227,2]
[359140348,1745733126558,-383.16450054,0.00013227,2]
[359140349,1745733131636,-84.61933143,0.00013227,2]
[359140350,1745733131663,-122.08064641,0.00013227,2]
[359140351,1745733135357,-226.584288,0.00013227,2]
[359140352,1745733139688,-160.24739882,0.00013227,2]
[359140353,1745733139715,-50.06632181,0.00013227,2]
[359140354,1745733144884,-203.22459561,0.00013227,2]
[359140355,1745733144909,-50.06632181,0.00013227,2]
[359140356,1745733150933,-244.82569589,0.00013227,2]
[359140357,1745733195176,-255.17430411,0.00013,2]
[359140358,1745733198920,-202.51029931,0.00013,2]
[359140359,1745733202194,-175.1107754,0.00013,2]
[359140360,1745733206084,-188.16379301,0.00013,2]
[359140361,1745733210497,-379.92621908,0.00013,2]
[359140362,1745733213532,-251.50308875,0.00013,2]
[359140363,1745733217684,-236.64766515,0.00013,2]
[359140364,1745733221711,-441.99256563,0.00013,2]
[359140365,1745733226890,-158.00743437,0.00013,2]
[359140366,1745733229719,-503.89405925,0.00013,2]
[359140367,1745733236978,-300.0,0.00013,2]
[359140368,1745733243526,-41.07421801,0.00013,2]
[359140369,1745733243550,-250.0,0.00013558,2]
[359140372,1745733261409,-233.34027818,0.00013599,2]
[359140373,1745733271219,-161.16470176,0.00013599,2]
[359140374,1745733275248,-154.42080205,0.00013599,2]
[359140375,1745733279557,-263.62684848,0.00013599,2]
[359140376,1745733451629,-196.77148994,0.00013599,2]
[359140377,1745733454248,-303.22851006,0.00013599,2]
[359140378,1745733458623,-196.03296571,0.00013599,2]
[359140379,1745733463694,-14.95058596,0.00013599,2]
[359140380,1745733505737,-243.28928482,0.00013066,2]
[359140381,1745733511668,-446.92458645,0.00013066,2]
[359140382,1745733517503,-300.0,0.00013066,2]
[359140383,1745733524200,-549.91444764,0.00013066,2]
[359140384,1745733528891,343.64197517,0.00020404,18]
[359140385,1745733529266,343.64197517,0.00021904,33]
[359140386,1745733529587,-233.51131837,0.00013066,2]
[359140387,1745733533909,-266.48868163,0.00013066,2]
[359140388,1745733539527,-233.51131837,0.00013066,2]
[359140389,1745733544693,-227.31549673,0.00013066,2]
[359140390,1745733549760,-500.0,0.00013066,2]
[359140391,1745733554123,-450.08555236,0.00013066,2]
[359140392,1745733560892,-181.12855396,0.00013066,2]
[359140393,1745733565208,-468.27667642,0.00013066,2]
[359140394,1745733574446,-245.82891614,0.00013066,2]
[359140395,1745733581991,-300.0,0.00013066,2]
[359140396,1745733642432,-300.0,0.00013066,2]
[359140398,1745733647686,-399.89147148,0.00013066,2]
[359140399,1745733657103,-945.25515569,0.00013066,2]
[359140400,1745733662643,-180.83055779,0.00013066,2]
[359140403,1745733762616,-180.83055779,0.00013066,2]
[359140404,1745733765918,-242.22395415,0.00013066,2]
[359140405,1745733773618,-244.82569589,0.00013066,2]
[359140406,1745733779974,-255.17430411,0.00013066,2]
[359140407,1745733783160,-300.0,0.00013066,2]
[359140408,1745733788291,-163.04468616,0.00013066,2]
[359140409,1745733794151,-370.79775501,0.00013066,2]
[359140410,1745733799244,-324.44803559,0.00013066,2]
[359140411,1745733801957,-283.89203115,0.00013066,2]
[359140413,1745733807140,-250.0,0.00013066,2]
[359140414,1745733814464,-228.8212548,0.00013066,2]
[359140416,1745733819295,-244.09880099,0.00013066,2]
[359140417,1745733823558,-439.59090651,0.00013066,2]
[359140418,1745733823581,-191.37972229,0.00013499,2]
[359140606,1745734007132,-961.96853949,0.00012698,2]
[359140607,1745734014776,-250.0,0.00012698,2]
[359140608,1745734019198,-847.54595682,0.00012698,2]
[359140609,1745734022340,-369.84328708,0.00012698,2]
[359140610,1745734030358,-179.00545056,0.00012697,2]
[359140611,1745734032991,-120.99454944,0.00012697,2]
[359140612,1745734033014,-53.61457859,0.00012698,2]
[359140613,1745734038504,-348.0,0.00012698,2]
[359140614,1745734043313,-187.23134576,0.00012698,2]
[359140615,1745734046526,-454.90126416,0.00012698,2]
[359140616,1745734059034,-163.04468616,0.00012698,2]
[359140617,1745734062289,-170.75564357,0.00012698,2]
[359140618,1745734069469,-294.88137325,0.00012697,2]
[359140619,1745734079335,-33.34948765,0.00012697,2]
[359140620,1745734079358,-129.69519851,0.00012698,2]
[359140622,1745734088894,-197.25371995,0.00012697,2]
[359140624,1745734097201,-102.74628005,0.00012697,2]
[359140625,1745734097226,-302.3723467,0.00012698,2]
[359140626,1745734100171,-151.0,0.00012698,2]
[359140627,1745734104227,-395.43498962,0.00012698,2]
[359140628,1745734106903,884.31,0.000101,2]
[359140629,1745734106973,-665.19754965,0.00012698,2]
[359140630,1745734117647,-461.60989995,0.00012697,2]
[359140631,1745734120294,-199.82067607,0.00012697,2]
[359140632,1745734125469,-500.04633232,0.00012697,2]
[359140633,1745734129269,-524.7174005,0.00012697,2]
[359140635,1745734139121,-225.23626718,0.00012697,2]
[359140636,1745734149231,-250.0,0.00012696,2]
[359140637,1745734153562,-50.0,0.00012696,2]
[359140638,1745734153587,-249.19760198,0.00012697,2]
[359140639,1745734160084,-700.80239802,0.00012697,2]
[359140640,1745734165479,-250.0,0.00012697,2]
[359140641,1745734170936,-637.61887863,0.00012697,2]
[359140642,1745734174103,-250.0,0.00012697,2]
[359140643,1745734178413,-500.0,0.00012697,2]
[359140657,1745734232181,-300.0,0.00012696,2]
[359140658,1745734232192,-192.0,0.00012696,2]
[359140659,1745734232202,-300.0,0.00012696,2]
[359140660,1745734232212,-1200.0,0.00012696,2]
[359140661,1745734232222,-300.0,0.00012696,2]
[359140662,1745734232232,-3799.74522845,0.00012697,2]
[359140663,1745734232243,-15605.04810604,0.00012697,2]
[359140664,1745734232254,-19449.39461389,0.00012698,2]
[359140665,1745734232264,-500.0,0.00013414,2]
[359140666,1745734232274,-500.0,0.00013414,2]
[359140667,1745734232284,-296.84563747,0.00013414,2]
[359140668,1745734232294,-500.0,0.00013414,2]
[359140669,1745734232305,-500.0,0.00013414,2]
[359140670,1745734232316,-501.68700575,0.00013414,2]
[359140671,1745734232326,-500.0,0.00013414,2]
[359140672,1745734232336,-503.7967001,0.00013414,2]
[359140673,1745734232346,-500.0,0.00013414,2]
[359140674,1745734232357,-500.0,0.00013414,2]
[359140675,1745734232366,-160.4591836,0.00013414,2]
[359140676,1745734232378,-500.0,0.00013414,2]
[359140677,1745734232388,-497.40914964,0.00013414,2]
[359140678,1745734232398,-506.91972126,0.00013414,2]
[359140679,1745734232409,-500.0,0.00013414,2]
[359140680,1745734232420,-500.0,0.00013414,2]
[359140681,1745734232430,-421.02216727,0.00013414,2]
[359140682,1745734232440,-250.69507329,0.00013698,2]
[359140683,1745734232449,-500.0,0.00013698,2]
[359140684,1745734232459,-374.71149853,0.00013698,2]
[359140685,1745734232474,-500.0,0.00013698,2]
[359140686,1745734232484,-181.97248187,0.00013698,2]
[359140687,1745734232494,-160.365573,0.00013699,2]
[359140688,1745734232505,-501.1711807,0.000137,2]
[359140689,1745734232515,-500.0,0.000137,2]
[359140690,1745734232525,-500.0,0.000137,2]
[359140691,1745734232536,-500.0,0.000137,2]
[359140692,1745734232546,-508.80671182,0.000137,2]
[359140693,1745734232556,-501.17337227,0.000137,2]
[359140694,1745734232566,-500.0,0.000137,2]
[359140695,1745734232576,-500.0,0.000137,2]
[359140696,1745734232587,-420.0,0.00013928,2]
[359140697,1745734232597,-420.0,0.00013928,2]
[359140698,1745734232607,-1680.0,0.00013966,2]
[359140699,1745734232618,-152.0,0.00015149,2]
[359140700,1745734232628,-587.0,0.00015279,2]
[359140701,1745734232638,-654.0,0.00015362,2]
[359140702,1745734232648,-500.0,0.00015638,2]
[359140703,1745734232657,-1708.20385294,0.000158,2]
[359140704,1745734232667,-311.78265113,0.000159,2]
[359140705,1745734232677,-311.78265095,0.000159,2]
[359140706,1745734232686,-311.78265095,0.000159,2]
[359140707,1745734232696,-1708.20385293,0.00016075,2]
[359140708,1745734232706,-311.5468125,0.00016164,2]
[359140709,1745734232718,-500.0,0.00016164,2]
[359140710,1745734232728,-1708.20385293,0.0001635,2]
[359140711,1745734232738,-500.0,0.00016438,2]
[359140712,1745734232748,-502.66791284,0.00016438,2]
[359140713,1745734232758,-503.57180287,0.00016438,2]
[359140714,1745734232768,-500.0,0.00016438,2]
[359140715,1745734232778,-504.02855715,0.00016438,2]
[359140716,1745734232788,-500.0,0.00016438,2]
[359140717,1745734232798,-535.39809827,0.00016438,2]
[359140718,1745734232808,-500.0,0.00016438,2]
[359140719,1745734232819,-502.41255968,0.00016438,2]
[359140720,1745734232829,-400.0,0.00016438,2]
[359140721,1745734232838,-400.0,0.00016438,2]
[359140722,1745734232849,-400.0,0.00016438,2]
[359140723,1745734232858,-1511.16,0.00016438,2]
[359140724,1745734232869,-400.0,0.00016438,2]
[359140725,1745734232878,-400.0,0.00016438,2]
[359140726,1745734232888,-400.0,0.00016438,2]
[359140727,1745734232898,-400.0,0.00016438,2]
[359140728,1745734232908,-501.99004924,0.00016438,2]
[359140729,1745734232918,-505.43295764,0.00016438,2]
[359140730,1745734232928,-504.64355358,0.00016438,2]
[359140731,1745734232938,-501.20705146,0.00016438,2]
[359140732,1745734232947,-508.56406754,0.00016438,2]
[359140733,1745734232957,-504.46882542,0.00016438,2]
[359140734,1745734232967,-507.76377528,0.00016438,2]
[359140735,1745734232977,-504.63162492,0.00016438,2]
[359140736,1745734232987,-400.0,0.00016438,2]
[359140737,1745734232997,-510.3796954,0.00016438,2]
[359140738,1745734233008,-400.0,0.00016438,2]
[359140739,1745734233018,-506.62592677,0.00016438,2]
[359140740,1745734233028,-214.64932986,0.00016438,2]
[359140741,1745734233039,-500.0,0.00016438,2]
[359140742,1745734233048,-400.0,0.00016438,2]
[359140743,1745734233059,-400.0,0.00016438,2]
[359140744,1745734233069,-400.0,0.00016438,2]
[359140745,1745734233078,-506.72275636,0.00016438,2]
[359140746,1745734233090,-400.0,0.00016438,2]
[359140747,1745734233101,-500.0,0.00016438,2]
[359140748,1745734233112,-400.0,0.00016438,2]
[359140749,1745734233125,-400.0,0.00016438,2]
[359140750,1745734233135,-500.0,0.00016438,2]
[359140751,1745734233145,-185.51158809,0.00016438,2]
[359140752,1745734233156,-242.72216951,0.00016438,2]
[359140753,1745734233167,-400.0,0.00016438,2]
[359140754,1745734233177,-500.0,0.00016438,2]
[359140755,1745734233187,-500.0,0.00016438,2]
[359140756,1745734233198,-500.0,0.00016438,2]
[359140757,1745734233208,-500.0,0.00016438,2]
[359140758,1745734233219,-400.0,0.00016438,2]
[359140759,1745734233230,-400.0,0.00016438,2]
[359140760,1745734233240,-205.12951914,0.00016438,2]
[359140761,1745734233250,-400.0,0.00016438,2]
[359140762,1745734233261,-400.0,0.00016438,2]
[359140763,1745734233271,-508.25574734,0.00016438,2]
[359140764,1745734233281,-400.0,0.00016438,2]
[359140765,1745734233291,-400.0,0.00016438,2]
[359140766,1745734233301,-400.0,0.00016438,2]
[359140767,1745734233311,-505.5884135,0.00016438,2]
[359140768,1745734233321,-400.0,0.00016438,2]
[359140770,1745734233332,-400.0,0.00016438,2]
[359140771,1745734233341,-400.0,0.00016438,2]
[359140772,1745734233352,-400.0,0.00016438,2]
[359140773,1745734233362,-400.0,0.00016438,2]
[359140774,1745734233372,-1407.07,0.00016438,2]
[359140775,1745734233382,-1604.74,0.00016438,2]
[359140776,1745734233393,-400.0,0.00016438,2]
[359140777,1745734233402,-1831.91,0.00016438,2]
[359140778,1745734233412,-365.40510812,0.00016438,2]
[359140779,1745734233423,-400.0,0.00016438,2]
[359140780,1745734233432,-400.0,0.00016438,2]
[359140781,1745734233443,-400.0,0.00016438,2]
[359140782,1745734233453,-1632.75,0.00016438,2]
[359140783,1745734233463,-400.0,0.00016438,2]
[359140784,1745734233474,-400.0,0.00016438,2]
[359140785,1745734233483,-400.0,0.00016438,2]
[359140786,1745734233493,-400.0,0.00016438,2]
[359140799,1745734233720,-226.4300654,0.00016438,2]
[359140802,1745734233732,-400.0,0.00016438,2]
[359140803,1745734233742,-1924.77,0.00016438,2]
[359140805,1745734233751,-200.0,0.00016438,2]
[359140806,1745734233762,-400.0,0.00016438,2]
[359140807,1745734233771,-400.0,0.00016438,2]
[359140808,1745734233781,-200.0,0.00016438,2]
[359140809,1745734233790,-400.0,0.00016438,2]
[359140810,1745734233800,-400.0,0.00016438,2]
[359140811,1745734233810,-400.0,0.00016438,2]
[359140812,1745734233820,-400.0,0.00016438,2]
[359140813,1745734233829,-400.0,0.00016438,2]
[359140814,1745734233839,-500.0,0.00016438,2]
[359140815,1745734233848,-400.0,0.00016438,2]
[359140816,1745734233858,-400.0,0.00016438,2]
[359140817,1745734233869,-400.0,0.00016438,2]
[359140818,1745734233878,-500.0,0.00016438,2]
[359140819,1745734233888,-400.0,0.00016438,2]
[359140820,1745734233897,-400.0,0.00016438,2]
[359140821,1745734233907,-400.0,0.00016438,2]
[359140822,1745734233917,-503.56866192,0.00016438,2]
[359140823,1745734233926,-200.0,0.00016438,2]
[359140824,1745734233936,-400.0,0.00016438,2]
[359140825,1745734233945,-400.0,0.00016438,2]
[359140826,1745734233955,-500.0,0.00016438,2]
[359140827,1745734233964,-200.0,0.00016438,2]
[359140828,1745734233975,-400.0,0.00016438,2]
[359140829,1745734233985,-311.83620853,0.00016438,2]
[359140830,1745734233995,-400.0,0.00016438,2]
[359140831,1745734234006,-200.0,0.00016438,2]
[359140832,1745734234015,-400.0,0.00016438,2]
[359140833,1745734234025,-500.0,0.00016438,2]
[359140834,1745734234034,-400.0,0.00016438,2]
[359140835,1745734234044,-200.0,0.00016438,2]
[359140836,1745734234055,-400.0,0.00016438,2]
[359140837,1745734234064,-503.2137787,0.00016438,2]
[359140838,1745734234074,-506.64747856,0.00016438,2]
[359140839,1745734234084,-501.85466649,0.00016438,2]
[359140840,1745734234094,-506.78000261,0.00016438,2]
[359140841,1745734234104,-400.0,0.00016438,2]
[359140842,1745734234114,-164.24131584,0.00016438,2]
[359140843,1745734234124,-505.30722418,0.00016438,2]
[359140844,1745734234134,-500.0,0.00016438,2]
[359140845,1745734234144,-400.0,0.00016438,2]
[359140846,1745734234155,-400.0,0.00016438,2]
[359140847,1745734234165,-485.18159098,0.00016438,2]
[359140848,1745734234175,-500.0,0.00016438,2]
[359140849,1745734234185,-2534.53,0.00016438,2]
[359140850,1745734234195,-400.0,0.00016438,2]
[359140851,1745734234204,-400.0,0.00016438,2]
[359140852,1745734234214,-2579.23,0.00016438,2]
[359140853,1745734234225,-505.8449394,0.00016438,2]
[359140854,1745734234234,-500.0,0.00016438,2]
[359140855,1745734234244,-500.0,0.00016438,2]
[359140856,1745734234253,-400.0,0.00016438,2]
[359140857,1745734234263,-200.0,0.00016438,2]
[359140858,1745734234273,-400.0,0.00016438,2]
[359140859,1745734234284,-206.53215251,0.00016438,2]
[359140860,1745734234294,-400.0,0.00016438,2]
[359140861,1745734234304,-2200.56,0.00016438,2]
[359140862,1745734234314,-195.38976025,0.00016438,2]
[359140886,1745734237963,-500.0,0.00012696,2]
[359140888,1745734237973,-500.0,0.00012696,2]
[359140889,1745734237983,-500.0,0.00012696,2]
[359140890,1745734237994,-500.0,0.00012696,2]
[359140891,1745734238004,-569.81629429,0.00012696,2]
[359140892,1745734238015,-578.35389428,0.00012696,2]
[359140893,1745734238024,-428.13460326,0.00012696,2]
[359140894,1745734238035,-296.52117541,0.00012696,2]
[359140895,1745734238045,-255.20584338,0.00012696,2]
[359140896,1745734238054,-500.0,0.00012696,2]
[359140897,1745734238064,-500.0,0.00012696,2]
[359140898,1745734238074,-500.0,0.00013699,2]
[359140899,1745734238084,-500.0,0.00013699,2]
[359140900,1745734238094,-500.0,0.00013699,2]
[359140901,1745734238103,-500.0,0.00013699,2]
[359140902,1745734238113,-500.0,0.00013699,2]
[359140903,1745734238123,-500.0,0.00013699,2]
[359140904,1745734238133,-500.0,0.00013699,2]
[359140905,1745734238143,-500.0,0.00013699,2]
[359140906,1745734238152,-500.0,0.00013699,2]
[359140907,1745734238162,-500.0,0.00013699,2]
[359140908,1745734238172,-500.0,0.00013699,2]
[359140909,1745734238181,-500.0,0.00013699,2]
[359140910,1745734238192,-500.0,0.00013699,2]
[359140911,1745734238202,-500.0,0.00013699,2]
[359140912,1745734238212,-500.0,0.00013699,2]
[359140913,1745734238221,-500.0,0.00013699,2]
[359140914,1745734238230,-500.0,0.00013699,2]
[359140915,1745734238239,-500.0,0.00013699,2]
[359140916,1745734238249,-500.0,0.00013699,2]
[359140917,1745734238259,-500.0,0.00013699,2]
[359140918,1745734238268,-500.0,0.00013699,2]
[359140919,1745734238278,-500.0,0.00013699,2]
[359140920,1745734238288,-500.0,0.00013699,2]
[359140921,1745734238298,-500.0,0.00013699,2]
[359140922,1745734238308,-500.0,0.00013699,2]
[359140923,1745734238319,-500.0,0.00013699,2]
[359140924,1745734238329,-500.0,0.00013699,2]
[359140925,1745734238339,-500.0,0.00013699,2]
[359140926,1745734238348,-500.0,0.00013699,2]
[359140927,1745734238358,-500.0,0.00013699,2]
[359140928,1745734238368,-500.0,0.00013699,2]
[359140929,1745734238378,-500.0,0.00013699,2]
[359140930,1745734238388,-500.0,0.00013699,2]
[359140931,1745734238398,-500.0,0.00013699,2]
[359140932,1745734238408,-500.0,0.00013699,2]
[359140933,1745734238419,-500.0,0.00013699,2]
[359140934,1745734238430,-500.0,0.00013699,2]
[359140935,1745734238440,-500.0,0.00013699,2]
[359140936,1745734238451,-500.0,0.00013699,2]
[359140937,1745734238461,-500.0,0.00013699,2]
[359140938,1745734238471,-500.0,0.00013699,2]
[359140939,1745734238482,-500.0,0.00013699,2]
[359140940,1745734238492,-500.0,0.00013699,2]
[359140941,1745734238503,-500.0,0.00013699,2]
[359140942,1745734238513,-500.0,0.00013699,2]
[359140943,1745734238524,-204.61023975,0.00016438,2]
[359140944,1745734238534,-400.0,0.00016438,2]
[359140945,1745734238544,-527.66,0.00016438,2]
[359140946,1745734238554,-2768.77,0.00016438,2]
[359140947,1745734238563,-400.0,0.00016438,2]
[359140948,1745734238572,-400.0,0.00016438,2]
[359140949,1745734238583,-3216.74,0.00016438,2]
[359140950,1745734238592,-400.0,0.00016438,2]
[359140951,1745734238603,-3261.8,0.00016438,2]
[359140952,1745734238612,-501.66426566,0.00016438,2]
[359140953,1745734238622,-400.0,0.00016438,2]
[359140954,1745734238632,-400.0,0.00016438,2]
[359140955,1745734238641,-500.0,0.00016438,2]
[359140956,1745734238652,-400.0,0.00016438,2]
[359140957,1745734238663,-504.51910402,0.00016438,2]
[359140958,1745734238673,-400.0,0.00016438,2]
[359140959,1745734238683,-2460.7,0.00016438,2]
[359140960,1745734238693,-1884.76,0.00016438,2]
[359140961,1745734238702,-500.0,0.00016438,2]
[359140962,1745734238712,-400.0,0.00016438,2]
[359140963,1745734238722,-1890.52,0.00016438,2]
[359140964,1745734238731,-400.0,0.00016438,2]
[359140965,1745734238741,-200.0,0.00016438,2]
[359140966,1745734238751,-2045.13,0.00016438,2]
[359140967,1745734238760,-459.8,0.00016438,2]
[359140968,1745734238770,-500.0,0.00016438,2]
[359140969,1745734238780,-400.0,0.00016438,2]
[359140970,1745734238790,-2216.91,0.00016438,2]
[359140971,1745734238799,-400.0,0.00016438,2]
[359140972,1745734238811,-400.0,0.00016438,2]
[359140973,1745734238822,-505.23380968,0.00016438,2]
[359140974,1745734238832,-509.75847061,0.00016438,2]
[359140975,1745734238842,-507.01303529,0.00016438,2]
[359140976,1745734238855,-200.0,0.00016438,2]
[359140977,1745734238864,-400.0,0.00016438,2]
[359140978,1745734238874,-418.64660856,0.00016438,2]
[359140979,1745734238883,-400.0,0.00016438,2]
[359140980,1745734238893,-400.0,0.00016438,2]
[359140981,1745734238903,-400.0,0.00016438,2]
[359140982,1745734238914,-400.0,0.00016438,2]
[359140983,1745734238924,-200.0,0.00016438,2]
[359140984,1745734238934,-1987.74,0.00016438,2]
[359140985,1745734238944,-400.0,0.00016438,2]
[359140986,1745734238954,-200.0,0.00016438,2]
[359140987,1745734238964,-400.0,0.00016438,2]
[359140988,1745734238974,-400.0,0.00016438,2]
[359140989,1745734238983,-400.0,0.00016438,2]
[359140990,1745734238992,-400.0,0.00016438,2]
[359140991,1745734239002,-400.0,0.00016438,2]
[359140992,1745734239011,-2164.02,0.00016438,2]
[359140993,1745734239020,-1670.38,0.00016438,2]
[359140994,1745734239030,-400.0,0.00016438,2]
[359140995,1745734239039,-484.54112358,0.00016438,2]
[359140996,1745734239050,-500.0,0.00016438,2]
[359140997,1745734239059,-400.0,0.00016438,2]
[359140998,1745734239069,-200.0,0.00016438,2]
[359140999,1745734239078,-200.0,0.00016438,2]
[359141000,1745734239088,-400.0,0.00016438,2]
[359141001,1745734239098,-400.0,0.00016438,2]
[359141002,1745734239107,-2295.8,0.00016438,2]
[359141003,1745734239116,-3376.25,0.00016438,2]
[359141004,1745734239126,-3020.21,0.00016438,2]
[359141005,1745734239135,-400.0,0.00016438,2]
[359141006,1745734239146,-400.0,0.00016438,2]
[359141007,1745734239157,-200.0,0.00016438,2]
[359141008,1745734239167,-1837.86,0.00016438,2]
[359141009,1745734239177,-554.58,0.00016438,2]
[359141010,1745734239187,-1873.63,0.00016438,2]
[359141011,1745734239196,-400.0,0.00016438,2]
[359141012,1745734239207,-400.0,0.00016438,2]
[359141013,1745734239217,-400.0,0.00016438,2]
[359141014,1745734239226,-2088.56,0.00016438,2]
[359141015,1745734239235,-400.0,0.00016438,2]
[359141016,1745734239245,-464.02631578,0.00016438,2]
[359141017,1745734239254,-400.0,0.00016438,2]
[359141018,1745734239263,-500.0,0.00016438,2]
[359141019,1745734239273,-440.28856717,0.00016438,2]
[359141020,1745734239284,-400.0,0.00016438,2]
[359141021,1745734239294,-1471.33,0.00016438,2]
[359141022,1745734239304,-400.0,0.00016438,2]
[359141023,1745734239315,-3718.64,0.00016438,2]
[359141024,1745734239324,-400.0,0.00016438,2]
[359141025,1745734239335,-400.0,0.00016438,2]
[359141026,1745734239344,-400.0,0.00016438,2]
[359141027,1745734239354,-2159.5,0.00016438,2]
[359141028,1745734239364,-400.0,0.00016438,2]
[359141029,1745734239373,-1071.16,0.00016438,2]
[359141030,1745734239383,-400.0,0.00016438,2]
[359141031,1745734239393,-1554.19,0.00016438,2]
[359141032,1745734239402,-871.8,0.00016438,2]
[359141033,1745734239413,-1077.6,0.00016438,2]
[359141034,1745734239423,-400.0,0.00016438,2]
[359141035,1745734239433,-400.0,0.00016438,2]
[359141036,1745734239442,-431.76,0.00016438,2]
[359141037,1745734239453,-793.59,0.00016438,2]
[359141038,1745734239463,-400.0,0.00016438,2]
[359141039,1745734239473,-502.04536911,0.00016438,2]